[Event "*** MasterClass Titled Tuesday Blitz"]
[Site "Chess.com"]
[Date "2017.09.05"]
[Round "9"]
[White "MITerryble"]
[Black "GMKrikor"]
[Result "0-1"]
[WhiteElo "2675"]
[BlackElo "2597"]
[TimeControl "180+2"]
[EndTime "15:16:00 PDT"]
[Termination "GMKrikor won on time"]

1. d4 {[%clk 0:02:58.8]} 1... Nf6 {[%clk 0:03:01.3]} 2. Nf3 {[%clk 0:02:59.7]}
2... e6 {[%clk 0:03:02.2]} 3. c4 {[%clk 0:03:00.4]} 3... d5 {[%clk 0:03:01.7]}
4. e3 {[%clk 0:03:01.4]} 4... b6 {[%clk 0:02:55.3]} 5. Bd3 {[%clk 0:02:58.9]}
5... Bb7 {[%clk 0:02:51.1]} 6. O-O {[%clk 0:02:58.9]} 6... Bd6 {[%clk
0:02:52.4]} 7. b3 {[%clk 0:02:57.9]} 7... O-O {[%clk 0:02:51.7]} 8. Bb2 {[%clk
0:02:58.2]} 8... c5 {[%clk 0:02:47.2]} 9. dxc5 {[%clk 0:02:57.8]} 9... Bxc5
{[%clk 0:02:39.8]} 10. Qc2 {[%clk 0:02:47.9]} 10... Nc6 {[%clk 0:02:28.6]} 11.
a3 {[%clk 0:02:46.8]} 11... Rc8 {[%clk 0:02:26.5]} 12. Nbd2 {[%clk 0:02:38.4]}
12... h6 {[%clk 0:01:42.1]} 13. Rfd1 {[%clk 0:02:33.6]} 13... Qe7 {[%clk
0:01:33.2]} 14. b4 {[%clk 0:02:30.7]} 14... Bd6 {[%clk 0:01:34]} 15. Rac1 {[%clk
0:02:29.7]} 15... Bb8 {[%clk 0:01:20.6]} 16. Qb1 {[%clk 0:02:28.3]} 16... Rfd8
{[%clk 0:01:19.3]} 17. Qa1 {[%clk 0:02:25.4]} 17... dxc4 {[%clk 0:01:15.9]} 18.
Nxc4 {[%clk 0:02:24.7]} 18... b5 {[%clk 0:01:17.4]} 19. Na5 {[%clk 0:02:04.4]}
19... Nxa5 {[%clk 0:01:15.7]} 20. bxa5 {[%clk 0:02:06.3]} 20... Rxc1 {[%clk
0:01:05.9]} 21. Qxc1 {[%clk 0:02:06.6]} 21... a6 {[%clk 0:01:01.2]} 22. h3
{[%clk 0:02:01]} 22... Qc7 {[%clk 0:00:42]} 23. Qa1 {[%clk 0:01:38.2]} 23...
Bxf3 {[%clk 0:00:37.9]} 24. gxf3 {[%clk 0:01:40.1]} 24... Qh2+ {[%clk 0:00:38]}
25. Kf1 {[%clk 0:01:41.1]} 25... e5 {[%clk 0:00:16.9]} 26. Bh7+ {[%clk
0:01:37.7]} 26... Kxh7 {[%clk 0:00:16]} 27. Rxd8 {[%clk 0:01:39.6]} 27... Bc7
{[%clk 0:00:14.3]} 28. Rd1 {[%clk 0:00:17.4]} 28... e4 {[%clk 0:00:15.7]} 29.
Bxf6 {[%clk 0:00:16]} 29... exf3 {[%clk 0:00:16.8]} 30. Ke1 {[%clk 0:00:12.4]}
30... Bxa5+ {[%clk 0:00:14.4]} 31. Bc3 {[%clk 0:00:12.1]} 31... Qg1+ {[%clk
0:00:12.9]} 32. Kd2 {[%clk 0:00:13]} 32... Qxf2+ {[%clk 0:00:14.6]} 33. Kc1
{[%clk 0:00:13.4]} 33... Qxe3+ {[%clk 0:00:16.1]} 34. Kc2 {[%clk 0:00:12.8]}
34... Qe2+ {[%clk 0:00:11.5]} 35. Rd2 {[%clk 0:00:10.9]} 35... Qe4+ {[%clk
0:00:09.3]} 36. Kb2 {[%clk 0:00:09.7]} 36... Bxc3+ {[%clk 0:00:06.7]} 37. Kxc3
{[%clk 0:00:11.6]} 37... f2 {[%clk 0:00:02.7]} 38. Qf1 {[%clk 0:00:04.2]} 38...
Qe5+ {[%clk 0:00:04.2]} 39. Kc2 {[%clk 0:00:03.3]} 39... Qf5+ {[%clk 0:00:03.7]}
40. Kd1 {[%clk 0:00:04.3]} 40... Qf3+ {[%clk 0:00:03.6]} 41. Kc2 {[%clk
0:00:03.5]} 41... Qe4+ {[%clk 0:00:03.9]} 42. Kd1 {[%clk 0:00:03.6]} 42... Qf3+
{[%clk 0:00:04.7]} 43. Kc2 {[%clk 0:00:03.3]} 43... Qe4+ {[%clk 0:00:06]} 44.
Kc1 {[%clk 0:00:02.3]} 44... Qe5 {[%clk 0:00:03.9]} 45. Kd1 {[%clk 0:00:01.9]}
45... Qh5+ {[%clk 0:00:04.1]} 46. Kc2 {[%clk 0:00:01.9]} 46... Qf5+ {[%clk
0:00:05.4]} 47. Kd1 {[%clk 0:00:03.8]} 47... Qf3+ {[%clk 0:00:06.1]} 48. Re2
{[%clk 0:00:02.9]} 48... Qd3+ {[%clk 0:00:06.2]} 49. Kc1 {[%clk 0:00:04.8]}
49... Qxa3+ {[%clk 0:00:06.6]} 50. Kb1 {[%clk 0:00:06.7]} 50... Qd3+ {[%clk
0:00:07.2]} 51. Kc1 {[%clk 0:00:06.6]} 51... Qc3+ {[%clk 0:00:07.6]} 52. Kb1
{[%clk 0:00:07.3]} 52... Qd3+ {[%clk 0:00:07.1]} 53. Kb2 {[%clk 0:00:08.2]}
53... Qd4+ {[%clk 0:00:08.6]} 54. Kc2 {[%clk 0:00:09.4]} 54... Qc4+ {[%clk
0:00:08.2]} 55. Kd2 {[%clk 0:00:09.7]} 55... Qd4+ {[%clk 0:00:09.8]} 56. Kc2
{[%clk 0:00:10.5]} 56... Qc4+ {[%clk 0:00:10.1]} 57. Kb2 {[%clk 0:00:11.2]}
57... Qb4+ {[%clk 0:00:10.4]} 58. Ka1 {[%clk 0:00:11.6]} 58... Qd4+ {[%clk
0:00:07.2]} 59. Rb2 {[%clk 0:00:10.9]} 59... Qa4+ {[%clk 0:00:08.5]} 60. Kb1
{[%clk 0:00:11.4]} 60... Qe4+ {[%clk 0:00:09.8]} 61. Ka1 {[%clk 0:00:07.4]}
61... Qe1+ {[%clk 0:00:08.5]} 62. Rb1 {[%clk 0:00:05]} 62... Qc3+ {[%clk
0:00:05.7]} 63. Ka2 {[%clk 0:00:05.3]} 63... Qc2+ {[%clk 0:00:06]} 64. Rb2
{[%clk 0:00:05.8]} 64... Qa4+ {[%clk 0:00:07.3]} 65. Kb1 {[%clk 0:00:06.2]}
65... Qe4+ {[%clk 0:00:09.2]} 66. Rc2 {[%clk 0:00:04]} 66... Qe1+ {[%clk
0:00:09.4]} 67. Rc1 {[%clk 0:00:03.2]} 67... Qb4+ {[%clk 0:00:10.7]} 68. Kc2
{[%clk 0:00:02.8]} 68... Qa4+ {[%clk 0:00:12.2]} 69. Kd2 {[%clk 0:00:02.1]}
69... Qf4+ {[%clk 0:00:12.5]} 70. Ke2 {[%clk 0:00:02.6]} 70... b4 {[%clk
0:00:08.7]} 71. Kd3 {[%clk 0:00:02.3]} 71... a5 {[%clk 0:00:08]} 72. Ke2 {[%clk
0:00:04.2]} 72... b3 {[%clk 0:00:08.6]} 73. Rb1 {[%clk 0:00:06.1]} 73... a4
{[%clk 0:00:08.5]} 74. Ra1 {[%clk 0:00:06.8]} 74... b2 {[%clk 0:00:05]} 75. Qb1+
{[%clk 0:00:07.4]} 75... g6 {[%clk 0:00:03.9]} 76. Qxb2 {[%clk 0:00:08.2]} 76...
Qg3 {[%clk 0:00:02.3]} 77. Rf1 {[%clk 0:00:07.8]} 77... Qxh3 {[%clk 0:00:02.8]}
78. Rxf2 {[%clk 0:00:07.9]} 78... Qe6+ {[%clk 0:00:04]} 79. Kf1 {[%clk
0:00:08.2]} 79... Qa6+ {[%clk 0:00:04]} 80. Kg1 {[%clk 0:00:08.8]} 80... Qa7
{[%clk 0:00:04.2]} 81. Qa2 {[%clk 0:00:10.7]} 81... Kg7 {[%clk 0:00:04.2]} 82.
Kg2 {[%clk 0:00:11.9]} 82... h5 {[%clk 0:00:05.5]} 83. Qa1+ {[%clk 0:00:11.7]}
83... Kg8 {[%clk 0:00:05.7]} 84. Qf6 {[%clk 0:00:13.6]} 84... a3 {[%clk
0:00:06]} 85. Rd2 {[%clk 0:00:13]} 85... Qb7+ {[%clk 0:00:06.7]} 86. Kh2 {[%clk
0:00:13.1]} 86... Qc7+ {[%clk 0:00:06.3]} 87. Kg1 {[%clk 0:00:12.3]} 87... Qc1+
{[%clk 0:00:05.7]} 0-1

[Event "*** MasterClass Titled Tuesday Blitz"]
[Site "Chess.com"]
[Date "2017.09.05"]
[Round "10"]
[White "W_Amadeus"]
[Black "SavelijTartakover"]
[Result "0-1"]
[WhiteElo "2385"]
[BlackElo "2540"]
[TimeControl "180+2"]
[EndTime "15:19:24 PDT"]
[Termination "SavelijTartakover won by resignation"]

1. d4 {[%clk 0:03:01.9]} 1... Nf6 {[%clk 0:02:58.5]} 2. c4 {[%clk 0:03:02.9]}
2... g6 {[%clk 0:02:58.7]} 3. Nc3 {[%clk 0:03:03.4]} 3... Bg7 {[%clk 0:02:59.7]}
4. e4 {[%clk 0:03:04.3]} 4... O-O {[%clk 0:03:00.8]} 5. Nf3 {[%clk 0:03:05.6]}
5... d6 {[%clk 0:03:02]} 6. Be2 {[%clk 0:03:07]} 6... e5 {[%clk 0:03:01.7]} 7.
O-O {[%clk 0:03:08.1]} 7... Nc6 {[%clk 0:03:02.8]} 8. d5 {[%clk 0:03:09.3]} 8...
Ne7 {[%clk 0:03:03.7]} 9. Qc2 {[%clk 0:03:09.9]} 9... h6 {[%clk 0:02:58.5]} 10.
Rd1 {[%clk 0:02:55]} 10... Nd7 {[%clk 0:02:58.2]} 11. Rb1 {[%clk 0:02:43.9]}
11... a5 {[%clk 0:02:57.3]} 12. a3 {[%clk 0:02:44.8]} 12... f5 {[%clk
0:02:57.4]} 13. b4 {[%clk 0:02:45.5]} 13... axb4 {[%clk 0:02:58.1]} 14. axb4
{[%clk 0:02:46.3]} 14... Nf6 {[%clk 0:02:59]} 15. Nd2 {[%clk 0:02:44.7]} 15...
fxe4 {[%clk 0:02:57.3]} 16. Ndxe4 {[%clk 0:02:45.6]} 16... Nf5 {[%clk
0:02:50.7]} 17. Nxf6+ {[%clk 0:02:23.9]} 17... Qxf6 {[%clk 0:02:49.7]} 18. Ne4
{[%clk 0:02:24.9]} 18... Qf7 {[%clk 0:02:50.7]} 19. Bb2 {[%clk 0:02:13.5]} 19...
Nd4 {[%clk 0:02:45.1]} 20. Bxd4 {[%clk 0:02:14.2]} 20... exd4 {[%clk 0:02:46.9]}
21. Bd3 {[%clk 0:02:12]} 21... Bf5 {[%clk 0:02:45.6]} 22. Ra1 {[%clk 0:02:05.1]}
22... Rxa1 {[%clk 0:02:37.7]} 23. Rxa1 {[%clk 0:02:05.8]} 23... Bxe4 {[%clk
0:02:38.8]} 24. Bxe4 {[%clk 0:02:07.4]} 24... d3 {[%clk 0:02:39.9]} 0-1

[Event "*** MasterClass Titled Tuesday Blitz"]
[Site "Chess.com"]
[Date "2017.09.05"]
[Round "10"]
[White "DiogenesSinopeus"]
[Black "Saitama_Hero"]
[Result "1-0"]
[WhiteElo "2378"]
[BlackElo "2300"]
[TimeControl "180+2"]
[EndTime "15:22:09 PDT"]
[Termination "DiogenesSinopeus won by resignation"]

1. d4 {[%clk 0:03:01.9]} 1... Nf6 {[%clk 0:03:01.9]} 2. c4 {[%clk 0:03:02.4]}
2... c5 {[%clk 0:03:03.8]} 3. d5 {[%clk 0:03:03.2]} 3... e5 {[%clk 0:03:05.1]}
4. dxe6 {[%clk 0:02:32]} 4... fxe6 {[%clk 0:03:04.4]} 5. g3 {[%clk 0:02:33.1]}
5... d5 {[%clk 0:03:00.9]} 6. Bg2 {[%clk 0:02:31.2]} 6... Be7 {[%clk 0:03:01]}
7. Nh3 {[%clk 0:02:29.3]} 7... Nc6 {[%clk 0:03:00]} 8. O-O {[%clk 0:02:24.5]}
8... O-O {[%clk 0:03:00.4]} 9. cxd5 {[%clk 0:02:11.4]} 9... exd5 {[%clk
0:03:02.3]} 10. Nf4 {[%clk 0:02:12.7]} 10... Kh8 {[%clk 0:03:00.5]} 11. Nxd5
{[%clk 0:02:09.8]} 11... Nxd5 {[%clk 0:03:02]} 12. Qxd5 {[%clk 0:02:09.3]} 12...
Qxd5 {[%clk 0:03:01.7]} 13. Bxd5 {[%clk 0:02:11.2]} 13... Nd4 {[%clk 0:03:02.6]}
14. Nc3 {[%clk 0:02:03.3]} 14... Bg4 {[%clk 0:03:02.8]} 15. f3 {[%clk
0:01:56.8]} 15... Bh3 {[%clk 0:03:01.7]} 16. Rd1 {[%clk 0:01:57.9]} 16... Rad8
{[%clk 0:03:02.1]} 17. Kf2 {[%clk 0:01:41.1]} 17... Bf6 {[%clk 0:03:03.1]} 18.
e3 {[%clk 0:01:30.8]} 18... b5 {[%clk 0:02:44]} 19. exd4 {[%clk 0:01:24.1]}
19... cxd4 {[%clk 0:02:45.9]} 20. Ne4 {[%clk 0:01:17.3]} 20... Rxd5 {[%clk
0:02:45.7]} 21. Nxf6 {[%clk 0:01:18.1]} 21... Rxf6 {[%clk 0:02:46.7]} 22. Re1
{[%clk 0:00:59]} 22... h6 {[%clk 0:02:45.1]} 23. Bd2 {[%clk 0:00:57.5]} 23...
Bg4 {[%clk 0:02:37.6]} 24. f4 {[%clk 0:00:58.1]} 24... Rh5 {[%clk 0:02:39]} 25.
h4 {[%clk 0:00:57.6]} 25... d3 {[%clk 0:02:34.7]} 26. Rac1 {[%clk 0:00:58.4]}
26... Be2 {[%clk 0:02:31.5]} 27. Rc8+ {[%clk 0:00:56]} 27... Kh7 {[%clk
0:02:32.8]} 28. Rc7 {[%clk 0:00:57]} 28... a6 {[%clk 0:02:31.2]} 29. Rec1 {[%clk
0:00:54.4]} 29... Rd5 {[%clk 0:02:27.1]} 30. Re7 {[%clk 0:00:53.5]} 30... Kg6
{[%clk 0:02:24.1]} 31. Rcc7 {[%clk 0:00:52.5]} 31... Kh5 {[%clk 0:02:22.7]} 32.
Rxg7 {[%clk 0:00:50]} 32... Rg6 {[%clk 0:02:23.6]} 33. Rxg6 {[%clk 0:00:44.2]}
33... Kxg6 {[%clk 0:02:22.7]} 34. Rc6+ {[%clk 0:00:41.8]} 34... Kh5 {[%clk
0:02:24]} 35. Rxa6 {[%clk 0:00:42.7]} 35... Rd7 {[%clk 0:02:17.4]} 36. f5 {[%clk
0:00:43.1]} 1-0

[Event "*** MasterClass Titled Tuesday Blitz"]
[Site "Chess.com"]
[Date "2017.09.05"]
[Round "10"]
[White "Keaton87"]
[Black "Indianlad"]
[Result "0-1"]
[WhiteElo "2480"]
[BlackElo "2613"]
[TimeControl "180+2"]
[EndTime "15:22:30 PDT"]
[Termination "Indianlad won by resignation"]

1. d4 {[%clk 0:03:02]} 1... d5 {[%clk 0:03:00.3]} 2. Bf4 {[%clk 0:03:00.4]} 2...
Nc6 {[%clk 0:03:01.2]} 3. e3 {[%clk 0:02:59.7]} 3... f6 {[%clk 0:02:58.9]} 4.
Nf3 {[%clk 0:02:58.2]} 4... g5 {[%clk 0:02:58.4]} 5. Bg3 {[%clk 0:02:57.6]} 5...
h5 {[%clk 0:02:58.9]} 6. h3 {[%clk 0:02:55.3]} 6... Nh6 {[%clk 0:03:00]} 7. c3
{[%clk 0:02:44.5]} 7... Nf5 {[%clk 0:03:00.6]} 8. Bh2 {[%clk 0:02:45.1]} 8...
Bg7 {[%clk 0:02:52.1]} 9. Nbd2 {[%clk 0:02:37.3]} 9... g4 {[%clk 0:02:51.1]} 10.
Ng1 {[%clk 0:02:33.7]} 10... g3 {[%clk 0:02:46.5]} 11. Bxg3 {[%clk 0:02:32.8]}
11... Nxg3 {[%clk 0:02:47.8]} 12. fxg3 {[%clk 0:02:33.5]} 12... e5 {[%clk
0:02:49.7]} 13. Be2 {[%clk 0:02:30.7]} 13... Qd6 {[%clk 0:02:46.9]} 14. Bxh5+
{[%clk 0:02:29.5]} 14... Ke7 {[%clk 0:02:48.2]} 15. Qe2 {[%clk 0:02:10.5]} 15...
Bf5 {[%clk 0:02:34.5]} 16. e4 {[%clk 0:01:55.1]} 16... dxe4 {[%clk 0:02:33.2]}
17. Nxe4 {[%clk 0:01:55.8]} 17... Bxe4 {[%clk 0:02:33.3]} 18. Qxe4 {[%clk
0:01:48.6]} 18... Rxh5 {[%clk 0:02:33.5]} 19. O-O-O {[%clk 0:01:49.5]} 19... f5
{[%clk 0:02:33.5]} 20. Qe2 {[%clk 0:01:49.3]} 20... Qh6+ {[%clk 0:02:23.6]} 21.
Kb1 {[%clk 0:01:49.7]} 21... Kf8 {[%clk 0:02:21.2]} 22. d5 {[%clk 0:01:38.9]}
22... Ne7 {[%clk 0:02:19.2]} 23. Nf3 {[%clk 0:01:40.5]} 23... e4 {[%clk
0:02:05.8]} 24. Nd4 {[%clk 0:01:41.6]} 24... Bxd4 {[%clk 0:02:05.6]} 25. Rxd4
{[%clk 0:01:43.6]} 25... Rg5 {[%clk 0:02:06.4]} 26. g4 {[%clk 0:01:40.7]} 26...
Rxg4 {[%clk 0:02:06.6]} 27. hxg4 {[%clk 0:01:38.9]} 27... Qxh1+ {[%clk
0:02:06.8]} 28. Kc2 {[%clk 0:01:40.4]} 28... Qh7 {[%clk 0:01:52]} 29. Kb3 {[%clk
0:01:23]} 29... Qf7 {[%clk 0:01:46.8]} 30. c4 {[%clk 0:01:21]} 30... b5 {[%clk
0:01:47.1]} 31. gxf5 {[%clk 0:01:16.8]} 31... bxc4+ {[%clk 0:01:47.7]} 32. Qxc4
{[%clk 0:01:17.4]} 32... Rb8+ {[%clk 0:01:43.6]} 33. Kc2 {[%clk 0:01:15.2]}
33... Nxf5 {[%clk 0:01:44.4]} 34. Rxe4 {[%clk 0:01:13.4]} 34... Nd6 {[%clk
0:01:43.5]} 35. Qc5 {[%clk 0:01:05.5]} 35... Qg6 {[%clk 0:01:43.8]} 0-1

[Event "*** MasterClass Titled Tuesday Blitz"]
[Site "Chess.com"]
[Date "2017.09.05"]
[Round "10"]
[White "Daniela_Movileanu"]
[Black "BIG_Pirate"]
[Result "1-0"]
[WhiteElo "2048"]
[BlackElo "2330"]
[TimeControl "180+2"]
[EndTime "15:22:33 PDT"]
[Termination "Daniela_Movileanu won by resignation"]

1. e4 {[%clk 0:03:01.9]} 1... d5 {[%clk 0:03:01]} 2. exd5 {[%clk 0:03:02.2]}
2... Qxd5 {[%clk 0:03:02.9]} 3. Nc3 {[%clk 0:03:02.7]} 3... Qa5 {[%clk
0:03:03.9]} 4. d4 {[%clk 0:03:03.7]} 4... Nf6 {[%clk 0:03:05.1]} 5. Nf3 {[%clk
0:03:04.6]} 5... Bg4 {[%clk 0:03:06.1]} 6. Be2 {[%clk 0:03:05]} 6... Nc6 {[%clk
0:03:06.2]} 7. h3 {[%clk 0:03:05.4]} 7... Bh5 {[%clk 0:03:06.6]} 8. g4 {[%clk
0:03:05.4]} 8... Bg6 {[%clk 0:03:07.2]} 9. Ne5 {[%clk 0:03:02.2]} 9... Nxe5
{[%clk 0:02:58.9]} 10. dxe5 {[%clk 0:03:03.2]} 10... Ne4 {[%clk 0:03:00.3]} 11.
Bb5+ {[%clk 0:02:50.9]} 11... c6 {[%clk 0:03:00.4]} 12. Qd5 {[%clk 0:02:17.9]}
12... Qd8 {[%clk 0:02:06.9]} 13. Bxc6+ {[%clk 0:02:11.7]} 13... bxc6 {[%clk
0:02:06.6]} 14. Qxc6+ {[%clk 0:02:12.3]} 14... Qd7 {[%clk 0:02:08]} 15. Qxa8+
{[%clk 0:02:12.9]} 15... Qd8 {[%clk 0:02:08.5]} 16. Qxd8+ {[%clk 0:02:06.9]}
16... Kxd8 {[%clk 0:02:09.4]} 17. Be3 {[%clk 0:02:05.8]} 17... Nxc3 {[%clk
0:02:09.4]} 18. bxc3 {[%clk 0:02:07.7]} 18... e6 {[%clk 0:02:08.5]} 19. O-O-O+
{[%clk 0:02:07.2]} 19... Kc7 {[%clk 0:02:09.4]} 20. Rd4 {[%clk 0:01:58]} 20...
Ba3+ {[%clk 0:02:06]} 21. Kd2 {[%clk 0:01:58.9]} 21... Rb8 {[%clk 0:01:41.5]}
22. Rc4+ {[%clk 0:01:53.7]} 22... Kd7 {[%clk 0:01:39.8]} 23. Bxa7 {[%clk
0:01:51.5]} 23... Rb7 {[%clk 0:01:38.7]} 24. Bc5 {[%clk 0:01:44.9]} 24... Bb2
{[%clk 0:01:30.6]} 25. Bb4 {[%clk 0:01:36.1]} 25... Ra7 {[%clk 0:01:25.6]} 26.
Rd4+ {[%clk 0:01:18.3]} 26... Kc7 {[%clk 0:01:21.9]} 27. a4 {[%clk 0:01:17.5]}
27... Rb7 {[%clk 0:01:02]} 28. Rb1 {[%clk 0:01:11.7]} 28... Ba3 {[%clk
0:01:01.3]} 29. Bd6+ {[%clk 0:01:03.7]} 1-0

[Event "*** MasterClass Titled Tuesday Blitz"]
[Site "Chess.com"]
[Date "2017.09.05"]
[Round "10"]
[White "kleinebeer98"]
[Black "Sebastian"]
[Result "0-1"]
[WhiteElo "2490"]
[BlackElo "2811"]
[TimeControl "180+2"]
[EndTime "15:23:05 PDT"]
[Termination "Sebastian won by resignation"]

1. e4 {[%clk 0:03:01.9]} 1... c5 {[%clk 0:03:01.2]} 2. Nf3 {[%clk 0:03:01.7]}
2... d6 {[%clk 0:03:02.6]} 3. d4 {[%clk 0:03:02.9]} 3... cxd4 {[%clk 0:03:04]}
4. Nxd4 {[%clk 0:03:04.8]} 4... Nf6 {[%clk 0:03:05.3]} 5. Nc3 {[%clk 0:03:05.9]}
5... a6 {[%clk 0:03:06.8]} 6. Be3 {[%clk 0:03:06.7]} 6... e5 {[%clk 0:03:07.2]}
7. Nb3 {[%clk 0:03:07.9]} 7... Be6 {[%clk 0:03:07.6]} 8. f3 {[%clk 0:03:08.7]}
8... h5 {[%clk 0:03:07.6]} 9. Nd5 {[%clk 0:03:08.6]} 9... Bxd5 {[%clk
0:03:08.3]} 10. exd5 {[%clk 0:03:10.5]} 10... Nbd7 {[%clk 0:03:09.8]} 11. Qd2
{[%clk 0:03:07.6]} 11... Qc7 {[%clk 0:03:11]} 12. Be2 {[%clk 0:02:55.6]} 12...
Nb6 {[%clk 0:03:10]} 13. c4 {[%clk 0:02:40.4]} 13... Nxc4 {[%clk 0:03:10.5]} 14.
Bxc4 {[%clk 0:02:13.1]} 14... Qxc4 {[%clk 0:03:10.8]} 15. Rd1 {[%clk 0:02:15]}
15... Be7 {[%clk 0:03:07.2]} 16. Na5 {[%clk 0:02:09.4]} 16... Qb5 {[%clk
0:03:04.3]} 17. a4 {[%clk 0:02:06.5]} 17... Qxa4 {[%clk 0:03:04.9]} 18. Nxb7
{[%clk 0:02:07]} 18... O-O {[%clk 0:03:01.4]} 19. O-O {[%clk 0:02:04.3]} 19...
Rac8 {[%clk 0:02:58.6]} 20. Rc1 {[%clk 0:01:57.8]} 20... Qb5 {[%clk 0:02:56]}
21. Na5 {[%clk 0:01:50.9]} 21... Nxd5 {[%clk 0:02:53.6]} 22. Bf2 {[%clk
0:01:49.2]} 22... Nf4 {[%clk 0:02:52.3]} 23. Kh1 {[%clk 0:01:46.4]} 23... Nd3
{[%clk 0:02:50.6]} 24. Rcd1 {[%clk 0:01:41.6]} 24... Nb4 {[%clk 0:02:30.4]} 25.
Nb3 {[%clk 0:01:35.8]} 25... Rc2 {[%clk 0:02:30.5]} 26. Qe3 {[%clk 0:01:35.3]}
26... Rxb2 {[%clk 0:02:22.3]} 27. Nd4 {[%clk 0:01:36.8]} 27... exd4 {[%clk
0:02:09.2]} 28. Qxe7 {[%clk 0:01:38.7]} 28... Qe5 {[%clk 0:02:10.2]} 29. Qh4
{[%clk 0:01:31.6]} 29... Nc2 {[%clk 0:01:55.5]} 30. Rd2 {[%clk 0:01:18.1]} 30...
Rfb8 {[%clk 0:01:49.3]} 31. h3 {[%clk 0:01:10.5]} 31... Ne3 {[%clk 0:01:46.1]}
32. Rxb2 {[%clk 0:01:11.3]} 32... Rxb2 {[%clk 0:01:46.7]} 33. Rc1 {[%clk
0:01:11.6]} 33... Kh7 {[%clk 0:01:33.1]} 34. Bg3 {[%clk 0:00:57.4]} 34... Qf5
{[%clk 0:01:28]} 35. Bxd6 {[%clk 0:00:56.5]} 35... Nxg2 {[%clk 0:01:15.1]} 36.
Qg3 {[%clk 0:00:57.4]} 36... Ne3 {[%clk 0:01:13.1]} 37. Be5 {[%clk 0:00:58.4]}
37... Rg2 {[%clk 0:01:13.6]} 0-1

[Event "*** MasterClass Titled Tuesday Blitz"]
[Site "Chess.com"]
[Date "2017.09.05"]
[Round "10"]
[White "chesstatour"]
[Black "Mistheoretical"]
[Result "1-0"]
[WhiteElo "2081"]
[BlackElo "2195"]
[TimeControl "180+2"]
[EndTime "15:23:27 PDT"]
[Termination "chesstatour won on time"]

1. c4 {[%clk 0:03:01.9]} 1... e5 {[%clk 0:02:58.5]} 2. Nc3 {[%clk 0:03:01.1]}
2... Nc6 {[%clk 0:02:54.6]} 3. Nf3 {[%clk 0:03:02.6]} 3... Nf6 {[%clk
0:02:49.2]} 4. d4 {[%clk 0:03:03.9]} 4... exd4 {[%clk 0:02:43]} 5. Nxd4 {[%clk
0:03:05.8]} 5... Bb4 {[%clk 0:02:43.7]} 6. g3 {[%clk 0:03:03.8]} 6... O-O {[%clk
0:02:22.3]} 7. Bg2 {[%clk 0:03:03.2]} 7... Ne5 {[%clk 0:02:19.9]} 8. Qb3 {[%clk
0:02:53.9]} 8... a5 {[%clk 0:02:12.3]} 9. O-O {[%clk 0:02:38]} 9... d6 {[%clk
0:02:02.1]} 10. Bg5 {[%clk 0:02:14.1]} 10... h6 {[%clk 0:01:59.8]} 11. Bxf6
{[%clk 0:02:03.1]} 11... Qxf6 {[%clk 0:02:01.7]} 12. Nd5 {[%clk 0:02:04]} 12...
Qd8 {[%clk 0:01:49.8]} 13. Nxb4 {[%clk 0:02:02.7]} 13... axb4 {[%clk 0:01:51]}
14. Nc2 {[%clk 0:01:26.4]} 14... Be6 {[%clk 0:01:40.3]} 15. Bd5 {[%clk
0:01:21.8]} 15... c5 {[%clk 0:00:39.8]} 16. Rad1 {[%clk 0:01:11.6]} 16... Qe7
{[%clk 0:00:31.9]} 17. Ne3 {[%clk 0:01:10.2]} 17... Ra6 {[%clk 0:00:21.8]} 18.
f4 {[%clk 0:00:49.2]} 18... Nc6 {[%clk 0:00:17.4]} 19. f5 {[%clk 0:00:34.1]}
19... Bd7 {[%clk 0:00:05]} 20. f6 {[%clk 0:00:33.4]} 20... Qe5 {[%clk 0:00:04]}
21. fxg7 {[%clk 0:00:27.8]} 1-0

[Event "*** MasterClass Titled Tuesday Blitz"]
[Site "Chess.com"]
[Date "2017.09.05"]
[Round "10"]
[White "VladDobrov"]
[Black "livestrong04"]
[Result "1-0"]
[WhiteElo "2602"]
[BlackElo "2351"]
[TimeControl "180+2"]
[EndTime "15:23:36 PDT"]
[Termination "VladDobrov won by resignation"]

1. e4 {[%clk 0:03:01.9]} 1... c5 {[%clk 0:02:59.9]} 2. a3 {[%clk 0:03:02.9]}
2... e6 {[%clk 0:03:00.5]} 3. b4 {[%clk 0:03:03.3]} 3... cxb4 {[%clk 0:03:01.3]}
4. axb4 {[%clk 0:03:05.2]} 4... d5 {[%clk 0:03:01.8]} 5. exd5 {[%clk 0:03:05.9]}
5... Nf6 {[%clk 0:03:03]} 6. dxe6 {[%clk 0:03:04.3]} 6... Bxe6 {[%clk
0:03:03.9]} 7. Nf3 {[%clk 0:03:05]} 7... Bxb4 {[%clk 0:03:04]} 8. Bb5+ {[%clk
0:03:05.2]} 8... Nc6 {[%clk 0:03:04.1]} 9. Ba3 {[%clk 0:03:06.2]} 9... Bxa3
{[%clk 0:03:04.2]} 10. Bxc6+ {[%clk 0:03:07.3]} 10... bxc6 {[%clk 0:03:04.3]}
11. Rxa3 {[%clk 0:03:09.2]} 11... O-O {[%clk 0:03:03.8]} 12. O-O {[%clk
0:03:10.1]} 12... h6 {[%clk 0:03:01.1]} 13. h3 {[%clk 0:03:10.4]} 13... Re8
{[%clk 0:03:01.1]} 14. Nc3 {[%clk 0:03:10.4]} 14... Qd6 {[%clk 0:03:00.9]} 15.
Ra5 {[%clk 0:03:06.9]} 15... Nd5 {[%clk 0:02:57.8]} 16. Qa1 {[%clk 0:03:01.6]}
16... Nb4 {[%clk 0:02:56.3]} 17. Ne4 {[%clk 0:02:50.7]} 17... Qf4 {[%clk
0:02:46.5]} 18. Ng3 {[%clk 0:02:32.5]} 18... Nxc2 {[%clk 0:02:30.8]} 19. Qxg7+
{[%clk 0:02:26.4]} 19... Kxg7 {[%clk 0:02:30.6]} 20. Nh5+ {[%clk 0:02:28.3]}
20... Kf8 {[%clk 0:02:28.6]} 21. Nxf4 {[%clk 0:02:30.2]} 21... Nb4 {[%clk
0:01:51.9]} 22. Rfa1 {[%clk 0:02:24.9]} 22... Nc2 {[%clk 0:00:57.3]} 23. Rc1
{[%clk 0:02:23.5]} 23... Bb3 {[%clk 0:00:51.6]} 24. Rc5 {[%clk 0:02:18.2]} 24...
a5 {[%clk 0:00:41.8]} 25. R5xc2 {[%clk 0:01:55.7]} 25... Bxc2 {[%clk 0:00:43.7]}
26. Rxc2 {[%clk 0:01:57.5]} 26... a4 {[%clk 0:00:44]} 27. Ra2 {[%clk 0:01:58.3]}
27... a3 {[%clk 0:00:43]} 28. Nd3 {[%clk 0:01:55]} 28... Reb8 {[%clk 0:00:35.7]}
29. Nfe5 {[%clk 0:01:47.5]} 29... Rb3 {[%clk 0:00:31.9]} 30. Nd7+ {[%clk
0:01:43]} 30... Ke7 {[%clk 0:00:28.8]} 31. N7c5 {[%clk 0:01:44.9]} 31... Rb1+
{[%clk 0:00:19]} 32. Kh2 {[%clk 0:01:46.1]} 32... Kd6 {[%clk 0:00:19.5]} 33.
Ne4+ {[%clk 0:01:47.3]} 33... Kc7 {[%clk 0:00:19]} 34. Nc3 {[%clk 0:01:47.5]}
34... Rb3 {[%clk 0:00:19.9]} 35. Kg3 {[%clk 0:01:48]} 35... Rd8 {[%clk
0:00:20.5]} 36. Nc5 {[%clk 0:01:47.5]} 36... Rb2 {[%clk 0:00:16.8]} 37. Rxa3
{[%clk 0:01:48.6]} 37... Rdxd2 {[%clk 0:00:17.5]} 38. N3e4 {[%clk 0:01:46.7]}
38... Rdc2 {[%clk 0:00:17.6]} 39. Ra7+ {[%clk 0:01:47.4]} 39... Kb6 {[%clk
0:00:18.5]} 40. Rxf7 {[%clk 0:01:48.1]} 40... Ra2 {[%clk 0:00:17.7]} 41. Rb7+
{[%clk 0:01:47.9]} 41... Ka5 {[%clk 0:00:18.9]} 42. Nb3+ {[%clk 0:01:48.7]}
42... Ka6 {[%clk 0:00:19.3]} 43. Nec5+ {[%clk 0:01:49.7]} 1-0